fUSD/lending_fUSD_20260622
["ID","MTS","AMOUNT","RATE_DAILY","PERIOD"]
[425977558,1782061926000,-2690.0,0.00030082,14]
[425977561,1782061926000,-2690.0,0.00030082,14]
[425977567,1782061926000,-284394.990109,0.000301,2]
[425977570,1782061926000,-250.0,0.00030119,15]
[425977572,1782061926000,-12500.0,0.00030125,2]
[425977573,1782061926000,-22500.0,0.00030125,2]
[425977581,1782061926000,-301.08,0.0003013,7]
[425977577,1782061926000,-1923.3425778,0.0003013,2]
[425977574,1782061926000,-11045.01,0.00030125,2]
[425977578,1782061926000,-56286.69376435,0.0003013,2]
[425977571,1782061926000,-1025.33,0.0003012,30]
[425977579,1782061926000,-2000.0,0.0003013,2]
[425977576,1782061926000,-30110.77913911,0.0003013,2]
[425977580,1782061926000,-308243.89027889,0.0003013,7]
[425977583,1782061926000,-500.0,0.0003013,7]
[425977610,1782061926000,-561.83803749,0.00030136,2]
[425977564,1782061926000,-2712.0,0.00030082,14]
[425977609,1782061926000,-500.0,0.00030136,2]
[425977639,1782061926000,-553.48,0.00030136,2]
[425977645,1782061926000,-500.0,0.00030136,2]
[425977644,1782061926000,-500.0,0.00030136,2]
[425977646,1782061926000,-597.73,0.00030136,2]
[425977647,1782061926000,-500.0,0.00030136,2]
[425977649,1782061926000,-555.93,0.00030136,2]
[425977650,1782061926000,-500.0,0.00030136,2]
[425977651,1782061926000,-500.0,0.00030136,2]
[425977661,1782061926000,-500.0,0.00030136,2]
[425977653,1782061926000,-526.65,0.00030136,2]
[425977652,1782061926000,-527.94,0.00030136,2]
[425977656,1782061926000,-500.0,0.00030136,2]
[425977648,1782061926000,-322.39265818,0.00030136,2]
[425977654,1782061926000,-541.49715247,0.00030136,2]
[425977660,1782061926000,-500.0,0.00030136,2]
[425977657,1782061926000,-610.79,0.00030136,2]
[425977659,1782061926000,-902.56,0.00030136,2]
[425977662,1782061926000,-500.0,0.00030136,2]
[425977664,1782061926000,-500.0,0.00030136,2]
[425977665,1782061926000,-500.0,0.00030136,2]
[425977666,1782061926000,-591.28,0.00030136,2]
[425977663,1782061926000,-529.62,0.00030136,2]
[425977668,1782061926000,-500.0,0.00030136,2]
[425977669,1782061926000,-500.0,0.00030136,2]
[425977667,1782061926000,-560.08,0.00030136,2]
[425977613,1782061926000,-508.36,0.00030136,2]
[425977655,1782061926000,-540.54,0.00030136,2]
[425977642,1782061926000,-500.0,0.00030136,2]
[425977658,1782061926000,-500.0,0.00030136,2]
[425977641,1782061926000,-500.0,0.00030136,2]
[425977643,1782061926000,-1267.5,0.00030136,2]
[425977612,1782061926000,-631.9,0.00030136,2]
[425977615,1782061926000,-500.0,0.00030136,2]
[425977616,1782061926000,-500.0,0.00030136,2]
[425977620,1782061926000,-645.4,0.00030136,2]
[425977618,1782061926000,-500.0,0.00030136,2]
[425977623,1782061926000,-1512.27,0.00030136,2]
[425977624,1782061926000,-500.0,0.00030136,2]
[425977621,1782061926000,-1160.03,0.00030136,2]
[425977617,1782061926000,-1880.63,0.00030136,2]
[425977625,1782061926000,-500.0,0.00030136,2]
[425977622,1782061926000,-1217.07,0.00030136,2]
[425977627,1782061926000,-544.8,0.00030136,2]
[425977619,1782061926000,-1266.12,0.00030136,2]
[425977640,1782061926000,-500.0,0.00030136,2]
[425977626,1782061926000,-842.29,0.00030136,2]
[425977638,1782061926000,-500.0,0.00030136,2]
[425977631,1782061926000,-500.0,0.00030136,2]
[425977636,1782061926000,-1369.32,0.00030136,2]
[425977635,1782061926000,-500.0,0.00030136,2]
[425977632,1782061926000,-500.0,0.00030136,2]
[425977634,1782061926000,-923.93,0.00030136,2]
[425977633,1782061926000,-500.0,0.00030136,2]
[425977630,1782061926000,-651.64,0.00030136,2]
[425977637,1782061926000,-500.0,0.00030136,2]
[425977628,1782061926000,-643.15,0.00030136,2]
[425977629,1782061926000,-975.39,0.00030136,2]
[425977716,1782061927000,-500.0,0.00030136,2]
[425977709,1782061927000,-663.71,0.00030136,2]
[425977711,1782061927000,-567.5,0.00030136,2]
[425977710,1782061927000,-670.78,0.00030136,2]
[425977707,1782061927000,-500.0,0.00030136,2]
[425977708,1782061927000,-500.0,0.00030136,2]
[425977713,1782061927000,-1423.29,0.00030136,2]
[425977705,1782061927000,-500.0,0.00030136,2]
[425977704,1782061927000,-500.0,0.00030136,2]
[425977703,1782061927000,-535.03,0.00030136,2]
[425977701,1782061927000,-741.63,0.00030136,2]
[425977714,1782061927000,-500.0,0.00030136,2]
[425977706,1782061927000,-534.55,0.00030136,2]
[425977717,1782061927000,-500.0,0.00030136,2]
[425977732,1782061927000,-508.83,0.00030136,2]
[425977725,1782061927000,-500.0,0.00030136,2]
[425977720,1782061927000,-698.8,0.00030136,2]
[425977719,1782061927000,-1244.82,0.00030136,2]
[425977715,1782061927000,-161.00287,0.00030136,2]
[425977721,1782061927000,-952.51,0.00030136,2]
[425977724,1782061927000,-588.39,0.00030136,2]
[425977723,1782061927000,-620.22,0.00030136,2]
[425977722,1782061927000,-500.0,0.00030136,2]
[425977726,1782061927000,-792.91,0.00030136,2]
[425977728,1782061927000,-500.0,0.00030136,2]
[425977738,1782061927000,-519.3,0.00030136,2]
[425977739,1782061927000,-1318.07,0.00030136,2]
[425977712,1782061927000,-500.0,0.00030136,2]
[425977718,1782061927000,-500.0,0.00030136,2]
[425977702,1782061927000,-831.45,0.00030136,2]
[425977673,1782061927000,-598.59,0.00030136,2]
[425977694,1782061927000,-500.0,0.00030136,2]
[425977672,1782061927000,-500.0,0.00030136,2]
[425977670,1782061927000,-597.07,0.00030136,2]
[425977731,1782061927000,-678.71,0.00030136,2]
[425977674,1782061927000,-504.73971594,0.00030136,2]
[425977671,1782061927000,-500.0,0.00030136,2]
[425977676,1782061927000,-500.0,0.00030136,2]
[425977686,1782061927000,-500.0,0.00030136,2]
[425977687,1782061927000,-520.78915691,0.00030136,2]
[425977680,1782061927000,-506.54,0.00030136,2]
[425977677,1782061927000,-972.04,0.00030136,2]
[425977683,1782061927000,-3422.69,0.00030136,2]
[425977681,1782061927000,-534.07,0.00030136,2]
[425977682,1782061927000,-500.0,0.00030136,2]
[425977678,1782061927000,-562.86,0.00030136,2]
[425977675,1782061927000,-500.0,0.00030136,2]
[425977679,1782061927000,-819.78,0.00030136,2]
[425977684,1782061927000,-766.03,0.00030136,2]
[425977685,1782061927000,-500.0,0.00030136,2]
[425977688,1782061927000,-500.0,0.00030136,2]
[425977695,1782061927000,-500.0,0.00030136,2]
[425977690,1782061927000,-500.0,0.00030136,2]
[425977693,1782061927000,-500.0,0.00030136,2]
[425977692,1782061927000,-500.0,0.00030136,2]
[425977689,1782061927000,-549.42,0.00030136,2]
[425977691,1782061927000,-500.0,0.00030136,2]
[425977699,1782061927000,-500.0,0.00030136,2]
[425977700,1782061927000,-500.0,0.00030136,2]
[425977696,1782061927000,-500.0,0.00030136,2]
[425977698,1782061927000,-500.0,0.00030136,2]
[425977697,1782061927000,-847.94,0.00030136,2]
[425977736,1782061927000,-500.0,0.00030136,2]
[425977740,1782061927000,-500.0,0.00030136,2]
[425977735,1782061927000,-1511.74,0.00030136,2]
[425977778,1782061927000,-602.92,0.00030136,2]
[425977767,1782061927000,-7491.39,0.00030136,2]
[425977775,1782061927000,-500.0,0.00030136,2]
[425977772,1782061927000,-500.0,0.00030136,2]
[425977777,1782061927000,-500.0,0.00030136,2]
[425977769,1782061927000,-421.72926736,0.00030136,2]
[425977770,1782061927000,-500.0,0.00030136,2]
[425977776,1782061927000,-500.0,0.00030136,2]
[425977766,1782061927000,-7491.39,0.00030136,2]
[425977774,1782061927000,-654.24,0.00030136,2]
[425977780,1782061927000,-5864.59,0.00030136,2]
[425977790,1782061927000,-500.0,0.00030136,2]
[425977781,1782061927000,-5224.19,0.00030136,2]
[425977785,1782061927000,-500.0,0.00030136,2]
[425977782,1782061927000,-500.0,0.00030136,2]
[425977784,1782061927000,-500.96643877,0.00030136,2]
[425977786,1782061927000,-1118.18,0.00030136,2]
[425977783,1782061927000,-500.0,0.00030136,2]
[425977730,1782061927000,-2678.53,0.00030136,2]
[425977789,1782061927000,-500.0,0.00030136,2]
[425977779,1782061927000,-500.0,0.00030136,2]
[425977787,1782061927000,-500.0,0.00030136,2]
[425977791,1782061927000,-1000.0,0.00030136,2]
[425977793,1782061927000,-500.0,0.00030136,2]
[425977792,1782061927000,-1016.84,0.00030136,2]
[425977794,1782061927000,-500.0,0.00030136,2]
[425977795,1782061927000,-500.0,0.00030136,2]
[425977796,1782061927000,-500.0,0.00030136,2]
[425977797,1782061927000,-500.0,0.00030136,2]
[425977771,1782061927000,-500.0,0.00030136,2]
[425977773,1782061927000,-3987.32,0.00030136,2]
[425977788,1782061927000,-1056.03,0.00030136,2]
[425977768,1782061927000,-7491.39,0.00030136,2]
[425977765,1782061927000,-7491.39,0.00030136,2]
[425977727,1782061927000,-500.0,0.00030136,2]
[425977729,1782061927000,-640.68,0.00030136,2]
[425977737,1782061927000,-893.03,0.00030136,2]
[425977733,1782061927000,-500.0,0.00030136,2]
[425977734,1782061927000,-417.33417613,0.00030136,2]
[425977743,1782061927000,-500.0,0.00030136,2]
[425977747,1782061927000,-500.0,0.00030136,2]
[425977749,1782061927000,-594.9,0.00030136,2]
[425977745,1782061927000,-500.0,0.00030136,2]
[425977751,1782061927000,-500.0,0.00030136,2]
[425977742,1782061927000,-200.0,0.00030136,2]
[425977741,1782061927000,-690.91,0.00030136,2]
[425977748,1782061927000,-800.23,0.00030136,2]
[425977750,1782061927000,-500.0,0.00030136,2]
[425977746,1782061927000,-500.0,0.00030136,2]
[425977762,1782061927000,-500.0,0.00030136,2]
[425977760,1782061927000,-7491.39,0.00030136,2]
[425977761,1782061927000,-7491.39,0.00030136,2]
[425977763,1782061927000,-7491.39,0.00030136,2]
[425977744,1782061927000,-500.0,0.00030136,2]
[425977756,1782061927000,-500.0,0.00030136,2]
[425977753,1782061927000,-500.0,0.00030136,2]
[425977757,1782061927000,-7491.39,0.00030136,2]
[425977758,1782061927000,-7491.39,0.00030136,2]
[425977755,1782061927000,-540.14,0.00030136,2]
[425977764,1782061927000,-7491.39,0.00030136,2]
[425977754,1782061927000,-1092.63,0.00030136,2]
[425977752,1782061927000,-803.29,0.00030136,2]
[425977759,1782061927000,-7491.39,0.00030136,2]
[425977827,1782061928000,-500.0,0.00030136,30]
[425977824,1782061928000,-500.0,0.00030136,30]
[425977826,1782061928000,-5923.33,0.00030136,2]
[425977829,1782061928000,-500.0,0.00030136,30]
[425977823,1782061928000,-500.0,0.00030136,30]
[425977822,1782061928000,-500.0,0.00030136,2]
[425977828,1782061928000,-500.0,0.00030136,30]
[425977825,1782061928000,-4889.99,0.00030136,2]
[425977830,1782061928000,-500.0,0.00030136,30]
[425977834,1782061928000,-500.0,0.00030136,30]
[425977838,1782061928000,-500.0,0.00030136,30]
[425977833,1782061928000,-500.0,0.00030136,30]
[425977832,1782061928000,-500.0,0.00030136,30]
[425977836,1782061928000,-500.0,0.00030136,30]
[425977839,1782061928000,-500.0,0.00030136,30]
[425977837,1782061928000,-500.0,0.00030136,30]
[425977840,1782061928000,-500.0,0.00030136,30]
[425977821,1782061928000,-500.0,0.00030136,30]
[425977831,1782061928000,-500.0,0.00030136,30]
[425977816,1782061928000,-500.0,0.00030136,30]
[425977804,1782061928000,-500.0,0.00030136,2]
[425977818,1782061928000,-500.0,0.00030136,30]
[425977835,1782061928000,-741.05,0.00030136,2]
[425977799,1782061928000,-500.0,0.00030136,2]
[425977801,1782061928000,-1130.66,0.00030136,2]
[425977798,1782061928000,-500.0,0.00030136,2]
[425977800,1782061928000,-500.0,0.00030136,2]
[425977803,1782061928000,-497.84543146,0.00030136,2]
[425977802,1782061928000,-572.65,0.00030136,2]
[425977805,1782061928000,-6753.8,0.00030136,2]
[425977806,1782061928000,-588.53062059,0.00030136,2]
[425977819,1782061928000,-500.0,0.00030136,30]
[425977807,1782061928000,-500.0,0.00030136,2]
[425977808,1782061928000,-3926.18,0.00030136,2]
[425977811,1782061928000,-500.0,0.00030136,30]
[425977810,1782061928000,-2712.86,0.00030136,2]
[425977813,1782061928000,-500.0,0.00030136,30]
[425977817,1782061928000,-873.86,0.00030136,2]
[425977820,1782061928000,-500.0,0.00030136,2]
[425977815,1782061928000,-500.0,0.00030136,30]
[425977814,1782061928000,-500.0,0.00030136,30]
[425977812,1782061928000,-500.0,0.00030136,30]
[425977809,1782061928000,-500.0,0.00030136,2]
[425977843,1782061928000,-500.0,0.00030136,30]
[425977844,1782061928000,-500.0,0.00030136,30]
[425977845,1782061928000,-500.0,0.00030136,30]
[425977866,1782061928000,-500.0,0.00030136,2]
[425977865,1782061928000,-8253.7,0.00030136,2]
[425977867,1782061928000,-822.03,0.00030136,2]
[425977868,1782061928000,-1547.68,0.00030136,2]
[425977873,1782061928000,-500.0,0.00030136,2]
[425977881,1782061928000,-9631.81,0.00030136,2]
[425977878,1782061928000,-500.0,0.00030136,2]
[425977874,1782061928000,-4867.06,0.00030136,2]
[425977875,1782061928000,-500.0,0.00030136,2]
[425977880,1782061928000,-500.0,0.00030136,2]
[425977876,1782061928000,-4107.48,0.00030136,2]
[425977877,1782061928000,-839.88,0.00030136,2]
[425977879,1782061928000,-913.85,0.00030136,2]
[425977883,1782061928000,-4501.1,0.00030136,2]
[425977885,1782061928000,-1094.84,0.00030136,2]
[425977886,1782061928000,-623.8851682,0.00030136,2]
[425977887,1782061928000,-500.0,0.00030136,2]
[425977884,1782061928000,-1087.92,0.00030136,2]
[425977841,1782061928000,-500.0,0.00030136,30]
[425977869,1782061928000,-500.0,0.00030136,2]
[425977864,1782061928000,-2146.6,0.00030136,2]
[425977882,1782061928000,-500.0,0.00030136,2]
[425977861,1782061928000,-12052.2,0.00030136,2]
[425977842,1782061928000,-500.0,0.00030136,30]
[425977863,1782061928000,-4173.31,0.00030136,2]
[425977847,1782061928000,-500.0,0.00030136,30]
[425977849,1782061928000,-500.0,0.00030136,30]
[425977846,1782061928000,-500.0,0.00030136,30]
[425977848,1782061928000,-500.0,0.00030136,30]
[425977852,1782061928000,-732.43,0.00030136,2]
[425977859,1782061928000,-6410.69,0.00030136,2]
[425977856,1782061928000,-500.0,0.00030136,2]
[425977858,1782061928000,-4756.56,0.00030136,2]
[425977850,1782061928000,-500.0,0.00030136,30]
[425977857,1782061928000,-500.0,0.00030136,2]
[425977853,1782061928000,-541.15,0.00030136,2]
[425977860,1782061928000,-605.17,0.00030136,2]
[425977851,1782061928000,-415.80773819,0.00030136,30]
[425977855,1782061928000,-500.0,0.00030136,2]
[425977870,1782061928000,-500.0,0.00030136,2]
[425977862,1782061928000,-500.0,0.00030136,2]
[425977854,1782061928000,-1048.26,0.00030136,2]
[425977871,1782061928000,-547.74,0.00030136,2]
[425977872,1782061928000,-9055.22,0.00030136,2]
[425977919,1782061929000,-1000.0,0.00030136,14]
[425977927,1782061929000,-3874.09,0.00030136,2]
[425977926,1782061929000,-4131.31,0.00030136,2]
[425977928,1782061929000,-538.42,0.00030136,2]
[425977924,1782061929000,-6462.79,0.00030136,2]
[425977920,1782061929000,-650.16,0.00030136,2]
[425977925,1782061929000,-500.0,0.00030136,2]
[425977923,1782061929000,-500.0,0.00030136,2]
[425977921,1782061929000,-1001.28492756,0.00030136,14]
[425977930,1782061929000,-629.28,0.00030136,2]
[425977922,1782061929000,-15060.49,0.00030136,2]
[425977931,1782061929000,-500.0,0.00030136,2]
[425977942,1782061929000,-709.73,0.00030136,2]
[425977929,1782061929000,-6683.71,0.00030136,2]
[425977939,1782061929000,-670.57,0.00030136,2]
[425977938,1782061929000,-500.0,0.00030136,2]
[425977933,1782061929000,-500.0,0.00030136,2]
[425977935,1782061929000,-785.35,0.00030136,2]
[425977932,1782061929000,-500.0,0.00030136,2]
[425977940,1782061929000,-2013.27,0.00030136,2]
[425977934,1782061929000,-500.0,0.00030136,2]
[425977945,1782061929000,-500.0,0.00030136,2]
[425977952,1782061929000,-8230.87,0.00030136,2]
[425977953,1782061929000,-500.0,0.00030136,2]
[425977918,1782061929000,-631.38,0.00030136,2]
[425977937,1782061929000,-500.0,0.00030136,2]
[425977910,1782061929000,-500.0,0.00030136,2]
[425977903,1782061929000,-500.0,0.00030136,2]
[425977915,1782061929000,-981.05,0.00030136,2]
[425977894,1782061929000,-8949.23,0.00030136,2]
[425977889,1782061929000,-3218.44,0.00030136,2]
[425977893,1782061929000,-500.0,0.00030136,2]
[425977890,1782061929000,-9092.8,0.00030136,2]
[425977891,1782061929000,-3370.08,0.00030136,2]
[425977892,1782061929000,-946.16,0.00030136,2]
[425977888,1782061929000,-8104.14,0.00030136,2]
[425977943,1782061929000,-4451.14,0.00030136,2]
[425977905,1782061929000,-6468.05,0.00030136,2]
[425977895,1782061929000,-544.71,0.00030136,2]
[425977897,1782061929000,-234.81013797,0.00030136,2]
[425977901,1782061929000,-3434.42,0.00030136,2]
[425977896,1782061929000,-6582.69,0.00030136,2]
[425977899,1782061929000,-4428.27,0.00030136,2]
[425977902,1782061929000,-6489.37,0.00030136,2]
[425977898,1782061929000,-826.36,0.00030136,2]
[425977900,1782061929000,-500.0,0.00030136,2]
[425977904,1782061929000,-500.0,0.00030136,2]
[425977906,1782061929000,-8108.8,0.00030136,2]
[425977908,1782061929000,-2478.59,0.00030136,2]
[425977917,1782061929000,-742.97,0.00030136,2]
[425977912,1782061929000,-3418.67,0.00030136,2]
[425977911,1782061929000,-514.73,0.00030136,2]
[425977914,1782061929000,-10410.98,0.00030136,2]
[425977907,1782061929000,-763.6,0.00030136,2]
[425977909,1782061929000,-500.0,0.00030136,2]
[425977916,1782061929000,-10460.79,0.00030136,2]
[425977913,1782061929000,-8432.29,0.00030136,2]
[425977944,1782061929000,-501.49,0.00030136,2]
[425977936,1782061929000,-853.42,0.00030136,2]
[425977947,1782061929000,-2000.0,0.00030136,2]
[425977980,1782061929000,-500.0,0.00030136,2]
[425977979,1782061929000,-4853.13,0.00030136,2]
[425977989,1782061929000,-282.05,0.00030137,15]
[425977982,1782061929000,-500.0,0.00030136,2]
[425977983,1782061929000,-250.0,0.00030136,15]
[425977988,1782061929000,-1000.0,0.00030137,30]
[425977985,1782061929000,-164.19199018,0.00030137,14]
[425977984,1782061929000,-164.19199019,0.00030137,14]
[425977987,1782061929000,-164.19199018,0.00030137,14]
[425977986,1782061929000,-164.19199018,0.00030137,14]
[425977991,1782061929000,-2500.0,0.00030137,120]
[425977990,1782061929000,-458.0,0.00030137,120]
[425977981,1782061929000,-582.10228966,0.00030136,2]
[425977995,1782061929000,-462.06,0.00030137,2]
[425977996,1782061929000,-187.17229738,0.00030137,30]
[425977994,1782061929000,-266.81023327,0.00030137,120]
[425977993,1782061929000,-450.52810896,0.00030137,120]
[425977997,1782061929000,-500.0,0.00030137,3]
[425977998,1782061929000,-2297.0,0.00030137,120]
[425977999,1782061929000,-501.82455083,0.00030137,2]
[425978000,1782061929000,-151.0,0.00030137,120]
[425978002,1782061929000,-500.0,0.00030137,30]
[425978004,1782061929000,-500.0,0.00030137,30]
[425978005,1782061929000,-500.0,0.00030137,30]
[425978003,1782061929000,-500.0,0.00030137,30]
[425977941,1782061929000,-1483.1,0.00030136,2]
[425977992,1782061929000,-500.0,0.00030137,2]
[425977978,1782061929000,-500.0,0.00030136,2]
[425978001,1782061929000,-2110.0,0.00030137,2]
[425977971,1782061929000,-339.24597418,0.00030136,2]
[425977973,1782061929000,-500.0,0.00030136,2]
[425977948,1782061929000,-200.0,0.00030136,2]
[425977950,1782061929000,-616.3,0.00030136,2]
[425977951,1782061929000,-4815.29,0.00030136,2]
[425977949,1782061929000,-1823.11,0.00030136,2]
[425977955,1782061929000,-500.0,0.00030136,2]
[425977954,1782061929000,-500.0,0.00030136,2]
[425977960,1782061929000,-8318.01,0.00030136,2]
[425977962,1782061929000,-4605.85,0.00030136,2]
[425977964,1782061929000,-2744.45,0.00030136,2]
[425977958,1782061929000,-3531.97,0.00030136,2]
[425977959,1782061929000,-529.37,0.00030136,2]
[425977956,1782061929000,-1825.32,0.00030136,2]
[425977963,1782061929000,-546.99,0.00030136,2]
[425977946,1782061929000,-500.0,0.00030136,2]
[425977969,1782061929000,-3268.54,0.00030136,2]
[425977957,1782061929000,-500.0,0.00030136,2]
[425977974,1782061929000,-543.15,0.00030136,2]
[425977968,1782061929000,-500.0,0.00030136,2]
[425977970,1782061929000,-500.0,0.00030136,2]
[425977966,1782061929000,-500.0,0.00030136,2]
[425977972,1782061929000,-596.86,0.00030136,2]
[425977975,1782061929000,-6629.64,0.00030136,2]
[425977977,1782061929000,-781.73,0.00030136,2]
[425977967,1782061929000,-500.0,0.00030136,2]
[425977961,1782061929000,-335.24591227,0.00030136,2]
[425977965,1782061929000,-6111.21,0.00030136,2]
[425977976,1782061929000,-1025.57,0.00030136,2]
[425978036,1782061930000,-152.52227387,0.0003014,4]
[425978058,1782061930000,-155.96,0.0003014,4]
[425978043,1782061930000,-157.77453067,0.0003014,4]
[425978044,1782061930000,-157.77453067,0.0003014,4]
[425978046,1782061930000,-157.77453067,0.0003014,4]
[425978037,1782061930000,-152.52227387,0.0003014,4]
[425978038,1782061930000,-152.52,0.0003014,4]
[425978045,1782061930000,-157.77453067,0.0003014,4]
[425978041,1782061930000,-152.13972601,0.0003014,4]
[425978040,1782061930000,-152.13972601,0.0003014,4]
[425978048,1782061930000,-157.77453067,0.0003014,4]
[425978042,1782061930000,-152.13,0.0003014,4]
[425978059,1782061930000,-159.2094345,0.0003014,4]
[425978055,1782061930000,-155.96026237,0.0003014,4]
[425978050,1782061930000,-157.77453067,0.0003014,4]
[425978052,1782061930000,-155.96026237,0.0003014,4]
[425978049,1782061930000,-157.77453067,0.0003014,4]
[425978053,1782061930000,-155.96026237,0.0003014,4]
[425978051,1782061930000,-157.77,0.0003014,4]
[425978054,1782061930000,-155.96026237,0.0003014,4]
[425978057,1782061930000,-155.96026237,0.0003014,4]
[425978056,1782061930000,-155.96026237,0.0003014,4]
[425978060,1782061930000,-159.2094345,0.0003014,4]
[425978062,1782061930000,-159.2094345,0.0003014,4]
[425978071,1782061930000,-159.2094345,0.0003014,4]
[425978069,1782061930000,-159.2094345,0.0003014,4]
[425978047,1782061930000,-157.77453067,0.0003014,4]
[425978039,1782061930000,-152.13972601,0.0003014,4]
[425978008,1782061930000,-500.0,0.00030137,30]
[425978029,1782061930000,-152.52227387,0.0003014,4]
[425978011,1782061930000,-500.0,0.00030137,30]
[425978006,1782061930000,-500.0,0.00030137,30]
[425978009,1782061930000,-500.0,0.00030137,30]
[425978007,1782061930000,-500.0,0.00030137,30]
[425978010,1782061930000,-500.0,0.00030137,30]
[425978012,1782061930000,-500.0,0.00030137,30]
[425978013,1782061930000,-178.37258696,0.00030137,30]
[425978019,1782061930000,-158.7476728,0.0003014,4]
[425978014,1782061930000,-150.0,0.00030137,120]
[425978016,1782061930000,-158.7476728,0.0003014,4]
[425978018,1782061930000,-158.7476728,0.0003014,4]
[425978020,1782061930000,-158.7476728,0.0003014,4]
[425978017,1782061930000,-158.7476728,0.0003014,4]
[425978015,1782061930000,-158.7476728,0.0003014,4]
[425978021,1782061930000,-158.74,0.0003014,4]
[425978023,1782061930000,-152.52227387,0.0003014,4]
[425978022,1782061930000,-152.52227387,0.0003014,4]
[425978024,1782061930000,-152.52227387,0.0003014,4]
[425978031,1782061930000,-152.52227387,0.0003014,4]
[425978032,1782061930000,-152.52227387,0.0003014,4]
[425978034,1782061930000,-152.52227387,0.0003014,4]
[425978033,1782061930000,-152.52227387,0.0003014,4]
[425978027,1782061930000,-152.52227387,0.0003014,4]
[425978025,1782061930000,-152.52227387,0.0003014,4]
[425978030,1782061930000,-152.52227387,0.0003014,4]
[425978026,1782061930000,-152.52227387,0.0003014,4]
[425978028,1782061930000,-152.52227387,0.0003014,4]
[425978035,1782061930000,-152.52227387,0.0003014,4]
[425978065,1782061930000,-159.2094345,0.0003014,4]
[425978068,1782061930000,-159.2094345,0.0003014,4]
[425978064,1782061930000,-159.2094345,0.0003014,4]
[425978098,1782061930000,-24999.96,0.0003025,2]
[425978105,1782061930000,-378.56671883,0.00030275,7]
[425978106,1782061930000,-1025.33,0.0003028,30]
[425978101,1782061930000,-2500.0,0.0003025,2]
[425978102,1782061930000,-200.0,0.00030266,2]
[425978104,1782061930000,-150.0,0.00030273,120]
[425978099,1782061930000,-12500.0,0.0003025,2]
[425978107,1782061930000,-30119.51405807,0.00030283,120]
[425978103,1782061930000,-200.0,0.00030266,2]
[425978108,1782061930000,-827.8009921,0.00030292,2]
[425978113,1782061930000,-35105.74282148,0.000303,5]
[425978120,1782061930000,-43950.135166,0.0003041,2]
[425978097,1782061930000,-25000.0,0.0003025,2]
[425978115,1782061930000,-251.0,0.0003036,2]
[425978111,1782061930000,-785.0,0.00030292,2]
[425978118,1782061930000,-1025.33,0.0003036,30]
[425978112,1782061930000,-1031.63,0.000303,2]
[425978119,1782061930000,-22500.0,0.00030375,2]
[425978110,1782061930000,-785.0,0.00030292,2]
[425978114,1782061930000,-260.11463423,0.0003036,2]
[425978116,1782061930000,-251.0,0.0003036,2]
[425978117,1782061930000,-251.0,0.0003036,2]
[425978122,1782061930000,-500.0,0.0003041,2]
[425978121,1782061930000,-500.0,0.0003041,2]
[425978124,1782061930000,-500.0,0.0003041,2]
[425978123,1782061930000,-500.0,0.0003041,2]
[425978109,1782061930000,-785.0,0.00030292,2]
[425978100,1782061930000,-24999.97,0.0003025,2]